fUSD/lending_fUSD_20250308
["ID","MTS","AMOUNT","RATE_DAILY","PERIOD"]
[355668449,1741450242308,-1157.52,8.219e-05,2]
[355668451,1741450242318,-789.79,8.219e-05,2]
[355668453,1741450242327,-887.2,8.219e-05,2]
[355668455,1741450242336,-2152.71,8.219e-05,2]
[355668457,1741450242348,-2756.22,8.219e-05,2]
[355668459,1741450242357,-872.98,8.219e-05,2]
[355668461,1741450242367,-500.0,8.219e-05,2]
[355668463,1741450242376,-3325.61,8.219e-05,2]
[355668465,1741450242386,-1306.31,8.219e-05,2]
[355668467,1741450242396,-617.81911857,8.219e-05,2]
[355668469,1741450242405,-12011.57,8.219e-05,2]
[355668471,1741450242414,-2363.22,8.219e-05,2]
[355668473,1741450242423,-1257.23,8.219e-05,2]
[355668475,1741450242432,-1805.35,8.219e-05,2]
[355668477,1741450242443,-500.0,8.219e-05,2]
[355668479,1741450242454,-191.93906298,8.219e-05,2]
[355668481,1741450242463,-500.0,8.219e-05,2]
[355668483,1741450242472,-1413.01,8.219e-05,2]
[355668485,1741450242482,-2989.51,8.219e-05,2]
[355668487,1741450242491,-935.65,8.219e-05,2]
[355668489,1741450242500,-574.49210668,8.219e-05,2]
[355668491,1741450242510,-747.04,8.219e-05,2]
[355668493,1741450242519,-721.1,8.219e-05,2]
[355668495,1741450242528,-1813.66,8.219e-05,2]
[355668497,1741450242537,-500.0,8.219e-05,2]
[355668499,1741450242548,-11444.74,8.219e-05,2]
[355668501,1741450242557,-500.0,8.219e-05,2]
[355668503,1741450242567,-2830.5,8.219e-05,2]
[355668505,1741450242577,-1286.66,8.219e-05,2]
[355668507,1741450242586,-704.31991919,8.219e-05,2]
[355668509,1741450242595,-2528.21,8.219e-05,2]
[355668511,1741450242605,-1510.82,8.219e-05,2]
[355668513,1741450242615,-1264.6,8.219e-05,2]
[355668515,1741450242625,-500.0,8.219e-05,2]
[355668517,1741450242634,-689.64,8.219e-05,2]
[355668519,1741450242643,-2233.02,8.219e-05,2]
[355668521,1741450242652,-500.0,8.219e-05,2]
[355668523,1741450242662,-500.0,8.219e-05,2]
[355668525,1741450242671,-2773.87,8.219e-05,2]
[355668527,1741450242681,-1618.72,8.219e-05,2]
[355668529,1741450242691,-500.0,8.219e-05,2]
[355668531,1741450242700,-1021.66,8.219e-05,2]
[355668533,1741450242709,-620.61,8.219e-05,2]
[355668535,1741450242719,-3122.98,8.219e-05,2]
[355668537,1741450242728,-5945.69,8.219e-05,2]
[355668539,1741450242738,-913.18,8.219e-05,2]
[355668540,1741450242747,-610.59,8.219e-05,2]
[355668541,1741450242756,-500.0,8.219e-05,2]
[355668542,1741450242765,-500.0,8.219e-05,2]
[355668543,1741450242774,-860.34,8.219e-05,2]
[355668544,1741450242783,-942.29,8.219e-05,2]
[355668545,1741450242793,-4818.15,8.219e-05,2]
[355668546,1741450242802,-500.0,8.219e-05,2]
[355668547,1741450242811,-500.0,8.219e-05,2]
[355668548,1741450242820,-500.0,8.219e-05,2]
[355668550,1741450242830,-5476.0,8.219e-05,2]
[355668552,1741450242839,-723.51,8.219e-05,2]
[355668554,1741450242849,-500.0,8.219e-05,2]
[355668556,1741450242858,-1402.52,8.219e-05,2]
[355668558,1741450242868,-3055.95,8.219e-05,2]
[355668560,1741450242878,-500.0,8.219e-05,2]
[355668562,1741450242887,-297.26594485,8.219e-05,2]
[355668564,1741450242896,-3991.9,8.219e-05,2]
[355668566,1741450242906,-1339.53,8.219e-05,2]
[355668569,1741450242916,-2276.46,8.219e-05,2]
[355668571,1741450242925,-27669.71,8.219e-05,2]
[355668573,1741450242935,-921.69,8.219e-05,2]
[355668575,1741450242945,-500.0,8.219e-05,2]
[355668577,1741450242954,-779.56,8.219e-05,2]
[355668579,1741450242964,-500.0,8.219e-05,2]
[355668581,1741450242973,-1165.23,8.219e-05,2]
[355668583,1741450242983,-6567.26,8.219e-05,2]
[355668586,1741450242993,-500.0,8.219e-05,2]
[355668591,1741450243002,-2129.6,8.219e-05,2]
[355668596,1741450243011,-500.0,8.219e-05,2]
[355668600,1741450243021,-500.0,8.219e-05,2]
[355668603,1741450243032,-1661.91,8.219e-05,2]
[355668606,1741450243042,-150.0,8.219e-05,2]
[355668609,1741450243052,-3834.2,8.219e-05,2]
[355668611,1741450243062,-1000.0,8.219e-05,2]
[355668614,1741450243073,-1578.96,8.219e-05,2]
[355668617,1741450243083,-250.0,8.219e-05,2]
[355668620,1741450243093,-164.8,8.232e-05,2]
[355668623,1741450243102,-704.31991907,8.291e-05,2]
[355668626,1741450243112,-684.5,8.3e-05,3]
[355668630,1741450243122,-183.0,8.318e-05,2]
[355668633,1741450243132,-704.31991907,8.363e-05,2]
[355668636,1741450243141,-3456.85,8.366e-05,2]
[355668639,1741450243151,-18642.08,8.366e-05,2]
[355668642,1741450243160,-500.0,8.366e-05,2]
[355668645,1741450243170,-900.26,8.366e-05,2]
[355668648,1741450243179,-506.89,8.366e-05,2]
[355668651,1741450243189,-1590.98,8.366e-05,2]
[355668654,1741450243198,-3349.73,8.366e-05,2]
[355668658,1741450243208,-1213.55,8.366e-05,2]
[355668662,1741450243218,-4631.77,8.366e-05,2]
[355668665,1741450243227,-3584.31,8.366e-05,2]
[355668668,1741450243237,-2586.02,8.366e-05,2]
[355668670,1741450243246,-1313.25,8.366e-05,2]
[355668672,1741450243255,-500.0,8.366e-05,2]
[355668674,1741450243266,-3465.88,8.366e-05,2]
[355668676,1741450243277,-6170.14,8.366e-05,2]
[355668678,1741450243287,-2896.99,8.366e-05,2]
[355668680,1741450243299,-9999.99,8.367e-05,2]
[355668682,1741450243309,-150.99,8.367e-05,2]
[355668684,1741450243318,-614.76343893,8.383e-05,2]
[355668686,1741450243329,-336.89,8.383e-05,2]
[355668688,1741450243339,-704.31991907,8.435e-05,2]
[355668690,1741450243348,-1551.63,8.486e-05,2]
[355668692,1741450243360,-1523.8,8.486e-05,2]
[355668694,1741450243371,-9999.99,8.486e-05,2]
[355668696,1741450243380,-353.80593118,8.492e-05,2]
[355668698,1741450243389,-500.0,8.493e-05,2]
[355668700,1741450243399,-500.0,8.493e-05,2]
[355668702,1741450243408,-500.0,8.493e-05,2]
[355668704,1741450243418,-500.0,8.493e-05,2]
[355668706,1741450243427,-500.0,8.493e-05,2]
[355668708,1741450243436,-500.0,8.493e-05,2]
[355668710,1741450243446,-500.0,8.493e-05,2]
[355668712,1741450243458,-500.0,8.493e-05,2]
[355668714,1741450243467,-500.0,8.493e-05,2]
[355668716,1741450243477,-500.0,8.493e-05,2]
[355668718,1741450243486,-500.0,8.493e-05,2]
[355668720,1741450243495,-623.78,8.493e-05,2]
[355668722,1741450243504,-500.0,8.493e-05,2]
[355668724,1741450243513,-735.61,8.493e-05,2]
[355668726,1741450243523,-500.0,8.493e-05,2]
[355668728,1741450243532,-500.0,8.493e-05,2]
[355668730,1741450243543,-500.0,8.493e-05,2]
[355668732,1741450243552,-500.0,8.493e-05,2]
[355668734,1741450243561,-500.0,8.493e-05,2]
[355668736,1741450243571,-500.0,8.493e-05,2]
[355668738,1741450243580,-500.0,8.493e-05,2]
[355668740,1741450243589,-500.0,8.493e-05,2]
[355668742,1741450243598,-500.0,8.493e-05,2]
[355668744,1741450243607,-500.0,8.493e-05,2]
[355668746,1741450243616,-593.73099913,8.493e-05,2]
[355668748,1741450243626,-536.09,8.493e-05,2]
[355668750,1741450243635,-500.0,8.493e-05,2]
[355668751,1741450243644,-500.0,8.493e-05,2]
[355668754,1741450243655,-500.0,8.493e-05,2]
[355668756,1741450243666,-212.57,8.493e-05,2]
[355668758,1741450243675,-500.0,8.493e-05,2]
[355668760,1741450243684,-500.0,8.493e-05,2]
[355668762,1741450243703,-500.0,8.493e-05,2]
[355668764,1741450243713,-500.0,8.493e-05,2]
[355668766,1741450243722,-500.0,8.493e-05,2]
[355668768,1741450243732,-500.0,8.493e-05,2]
[355668771,1741450243742,-500.0,8.493e-05,2]
[355668772,1741450243752,-500.0,8.493e-05,2]
[355668774,1741450243762,-150.1536953,8.493e-05,2]
[355668776,1741450243772,-500.0,8.493e-05,2]
[355668778,1741450243782,-500.0,8.493e-05,2]
[355668780,1741450243793,-500.0,8.493e-05,2]
[355668782,1741450243803,-500.0,8.493e-05,2]
[355668784,1741450243812,-611.2,8.493e-05,2]
[355668786,1741450243821,-500.0,8.493e-05,2]
[355668788,1741450243832,-500.0,8.493e-05,2]
[355668790,1741450243842,-500.0,8.493e-05,2]
[355668792,1741450243851,-500.0,8.493e-05,2]
[355668795,1741450243863,-500.0,8.493e-05,2]
[355668798,1741450243878,-500.0,8.493e-05,2]
[355668800,1741450243894,-598.25,8.493e-05,2]
[355668803,1741450243908,-500.0,8.493e-05,2]
[355668805,1741450243921,-500.0,8.493e-05,2]
[355668808,1741450243935,-801.86,8.493e-05,2]
[355668810,1741450243948,-500.0,8.493e-05,2]
[355668813,1741450243962,-500.0,8.493e-05,2]
[355668815,1741450243977,-563.45,8.493e-05,2]
[355668817,1741450243989,-500.0,8.493e-05,2]
[355668819,1741450244001,-631.96,8.493e-05,2]
[355668822,1741450244014,-500.0,8.493e-05,2]
[355668824,1741450244027,-786.33,8.493e-05,2]
[355668827,1741450244040,-500.0,8.493e-05,2]
[355668829,1741450244054,-585.65,8.493e-05,2]
[355668831,1741450244067,-500.0,8.493e-05,2]
[355668834,1741450244081,-559.71,8.493e-05,2]
[355668836,1741450244095,-500.0,8.493e-05,2]
[355668839,1741450244109,-500.0,8.493e-05,2]
[355668841,1741450244122,-500.0,8.493e-05,2]
[355668844,1741450244135,-500.0,8.493e-05,2]
[355668846,1741450244149,-570.31,8.493e-05,2]
[355668848,1741450244161,-500.0,8.493e-05,2]
[355668851,1741450244174,-500.0,8.493e-05,2]
[355668853,1741450244189,-500.0,8.493e-05,2]
[355668855,1741450244202,-674.8,8.493e-05,2]
[355668858,1741450244216,-500.0,8.493e-05,2]
[355668860,1741450244226,-500.0,8.493e-05,2]
[355668862,1741450244238,-500.0,8.493e-05,2]
[355668865,1741450244251,-875.54,8.493e-05,2]
[355668867,1741450244268,-500.0,8.493e-05,2]
[355668870,1741450244284,-697.96,8.493e-05,2]
[355668872,1741450244295,-500.0,8.493e-05,2]
[355668874,1741450244306,-500.0,8.493e-05,2]
[355668876,1741450244321,-500.0,8.493e-05,2]
[355668879,1741450244334,-500.0,8.493e-05,2]
[355668881,1741450244345,-500.0,8.493e-05,2]
[355668883,1741450244356,-828.33,8.493e-05,2]
[355668885,1741450244368,-500.0,8.493e-05,2]
[355668887,1741450244380,-500.0,8.493e-05,2]
[355668889,1741450244392,-554.2,8.493e-05,2]
[355668892,1741450244403,-500.0,8.493e-05,2]
[355668894,1741450244415,-500.0,8.493e-05,2]
[355668896,1741450244427,-500.0,8.493e-05,2]
[355668899,1741450244439,-500.0,8.493e-05,2]
[355668901,1741450244451,-500.0,8.493e-05,2]
[355668903,1741450244462,-500.0,8.493e-05,2]
[355668905,1741450244474,-511.03,8.493e-05,2]
[355668908,1741450244490,-602.41,8.493e-05,2]
[355668910,1741450244501,-500.0,8.493e-05,2]
[355668912,1741450244513,-500.0,8.493e-05,2]
[355668915,1741450244525,-500.0,8.493e-05,2]
[355668917,1741450244536,-500.0,8.493e-05,2]
[355668919,1741450244548,-500.0,8.493e-05,2]
[355668922,1741450244561,-567.16,8.493e-05,2]
[355668924,1741450244573,-500.0,8.493e-05,2]
[355668926,1741450244585,-500.0,8.493e-05,2]
[355668928,1741450244596,-500.0,8.493e-05,2]
[355668931,1741450244608,-500.0,8.493e-05,2]
[355668933,1741450244619,-500.0,8.493e-05,2]
[355668935,1741450244631,-716.52,8.493e-05,2]
[355668937,1741450244643,-516.17,8.493e-05,2]
[355668939,1741450244654,-555.84,8.493e-05,2]
[355668940,1741450244665,-500.0,8.493e-05,2]
[355668941,1741450244677,-501.68254505,8.493e-05,2]
[355668942,1741450244688,-611.173404,8.493e-05,2]
[355668943,1741450244700,-654.94,8.493e-05,2]
[355668944,1741450244711,-500.0,8.493e-05,2]
[355668945,1741450244723,-842.65,8.493e-05,2]
[355668947,1741450244734,-500.0,8.493e-05,2]
[355668949,1741450244747,-774.84,8.493e-05,2]
[355668951,1741450244759,-962.59,8.493e-05,2]
[355668954,1741450244771,-500.0,8.493e-05,2]
[355668956,1741450244783,-500.0,8.493e-05,2]
[355668958,1741450244796,-199.89,8.493e-05,2]
[355668961,1741450244808,-500.0,8.493e-05,2]
[355668963,1741450244820,-500.0,8.493e-05,2]
[355668965,1741450244832,-500.0,8.493e-05,2]
[355668968,1741450244844,-500.0,8.493e-05,2]
[355668970,1741450244856,-500.0,8.493e-05,2]
[355668972,1741450244867,-500.0,8.493e-05,2]
[355668974,1741450244879,-709.03,8.493e-05,2]
[355668976,1741450244891,-500.0,8.493e-05,2]
[355668979,1741450244902,-393.282689,8.493e-05,2]
[355668981,1741450244914,-1001.97,8.493e-05,2]
[355668983,1741450244926,-500.0,8.493e-05,2]
[355668985,1741450244938,-500.0,8.493e-05,2]
[355668987,1741450244950,-500.0,8.493e-05,2]
[355668990,1741450244963,-500.0,8.493e-05,2]
[355668992,1741450244977,-864.87,8.493e-05,2]
[355668994,1741450244989,-335.08089028,8.493e-05,2]
[355668997,1741450245001,-834.37,8.493e-05,2]
[355668999,1741450245013,-337.94,8.493e-05,2]
[355669001,1741450245024,-500.0,8.493e-05,2]
[355669003,1741450245036,-500.0,8.493e-05,2]
[355669005,1741450245049,-534.8,8.493e-05,2]
[355669008,1741450245062,-1049.79,8.493e-05,2]
[355669010,1741450245073,-860.21,8.493e-05,2]
[355669012,1741450245085,-976.28,8.493e-05,2]
[355669014,1741450245097,-500.0,8.493e-05,2]
[355669017,1741450245109,-859.81,8.493e-05,2]
[355669019,1741450245121,-500.0,8.493e-05,2]
[355669021,1741450245133,-500.0,8.493e-05,2]
[355669024,1741450245145,-500.0,8.493e-05,2]
[355669026,1741450245158,-1000.46,8.493e-05,2]
[355669028,1741450245170,-500.0,8.493e-05,2]
[355669030,1741450245182,-500.0,8.493e-05,2]
[355669033,1741450245194,-573.05,8.493e-05,2]
[355669035,1741450245206,-500.0,8.493e-05,2]
[355669037,1741450245217,-1201.81,8.493e-05,2]
[355669040,1741450245230,-238.79,8.493e-05,2]
[355669042,1741450245244,-500.0,8.493e-05,2]
[355669044,1741450245256,-608.51,8.493e-05,2]
[355669046,1741450245268,-1223.76,8.493e-05,2]
[355669049,1741450245283,-972.3,8.493e-05,2]
[355669051,1741450245296,-500.0,8.493e-05,2]
[355669053,1741450245308,-500.0,8.493e-05,2]
[355669055,1741450245320,-500.0,8.493e-05,2]
[355669058,1741450245332,-500.0,8.493e-05,2]
[355669060,1741450245344,-923.34,8.493e-05,2]
[355669062,1741450245357,-676.23,8.493e-05,2]
[355669064,1741450245369,-528.52,8.493e-05,2]
[355669067,1741450245383,-500.0,8.493e-05,2]
[355669069,1741450245395,-564.81,8.493e-05,2]
[355669071,1741450245407,-516.47,8.493e-05,2]
[355669073,1741450245420,-547.06569288,8.493e-05,2]
[355669076,1741450245432,-1192.68,8.493e-05,2]
[355669078,1741450245444,-628.26,8.493e-05,2]
[355669080,1741450245456,-500.0,8.493e-05,2]
[355669082,1741450245467,-764.96,8.493e-05,2]
[355669085,1741450245479,-1006.07,8.493e-05,2]
[355669087,1741450245491,-500.0,8.493e-05,2]
[355669089,1741450245503,-565.59,8.493e-05,2]
[355669092,1741450245515,-500.0,8.493e-05,2]
[355669094,1741450245529,-500.0,8.493e-05,2]
[355669096,1741450245540,-500.0,8.493e-05,2]
[355669099,1741450245552,-515.54,8.493e-05,2]
[355669101,1741450245564,-594.03,8.493e-05,2]
[355669103,1741450245575,-500.0,8.493e-05,2]
[355669105,1741450245587,-930.15,8.493e-05,2]
[355669108,1741450245598,-500.0,8.493e-05,2]
[355669110,1741450245610,-633.41,8.493e-05,2]
[355669112,1741450245622,-500.0,8.493e-05,2]
[355669114,1741450245634,-500.0,8.493e-05,2]
[355669117,1741450245646,-1209.92,8.493e-05,2]
[355669119,1741450245659,-773.96,8.493e-05,2]
[355669121,1741450245671,-500.0,8.493e-05,2]
[355669123,1741450245683,-2083.12,8.493e-05,2]
[355669126,1741450245695,-500.0,8.493e-05,2]
[355669131,1741450245735,-864.36,8.493e-05,2]
[355669133,1741450245747,-4992.7,8.493e-05,2]
[355669135,1741450245759,-500.0,8.493e-05,2]
[355669138,1741450245772,-594.4,8.493e-05,2]
[355669140,1741450245784,-627.02,8.493e-05,2]
[355669142,1741450245798,-500.0,8.493e-05,2]
[355669144,1741450245810,-851.99,8.493e-05,2]
[355669147,1741450245822,-1442.37,8.493e-05,2]
[355669150,1741450245834,-1003.48,8.493e-05,2]
[355669152,1741450245845,-5042.13,8.493e-05,2]
[355669154,1741450245857,-2121.73,8.493e-05,2]
[355669156,1741450245869,-500.0,8.493e-05,2]
[355669159,1741450245881,-265.19504598,8.493e-05,2]
[355669161,1741450245891,-879.88,8.493e-05,2]
[355669163,1741450245900,-4139.0,8.493e-05,2]
[355669166,1741450245910,-2225.22,8.493e-05,2]
[355669169,1741450245919,-2387.01,8.493e-05,2]
[355669172,1741450245928,-1387.09,8.493e-05,2]
[355669175,1741450245938,-500.0,8.493e-05,2]
[355669178,1741450245947,-500.0,8.493e-05,2]
[355669181,1741450245956,-355.4,8.493e-05,2]
[355669184,1741450245965,-500.0,8.493e-05,2]
[355669187,1741450245974,-1041.41,8.493e-05,2]
[355669222,1741450246283,-2411.52,8.493e-05,2]
[355669227,1741450246321,-644.99,8.493e-05,2]
[355669229,1741450246334,-500.0,8.493e-05,2]
[355669231,1741450246344,-500.0,8.493e-05,2]
[355669233,1741450246354,-1755.99,8.493e-05,2]
[355669235,1741450246364,-1615.13,8.493e-05,2]
[355669237,1741450246373,-1370.66,8.493e-05,2]
[355669239,1741450246383,-500.0,8.493e-05,2]
[355669241,1741450246392,-1657.53,8.493e-05,2]
[355669243,1741450246402,-500.0,8.493e-05,2]
[355669245,1741450246411,-1898.02,8.493e-05,2]
[355669246,1741450246419,-500.0,8.493e-05,2]
[355669247,1741450246428,-786.54,8.493e-05,2]
[355669248,1741450246437,-631.73,8.493e-05,2]
[355669249,1741450246447,-503.04,8.493e-05,2]
[355669250,1741450246456,-2515.6,8.493e-05,2]
[355669251,1741450246464,-500.0,8.493e-05,2]
[355669252,1741450246473,-1347.38,8.493e-05,2]
[355669253,1741450246482,-778.74,8.493e-05,2]
[355669254,1741450246493,-1222.18,8.493e-05,2]
[355669256,1741450246503,-1595.58,8.493e-05,2]
[355669258,1741450246512,-1606.44,8.493e-05,2]
[355669260,1741450246521,-2769.7,8.493e-05,2]
[355669262,1741450246531,-500.0,8.493e-05,2]
[355669264,1741450246540,-785.85,8.493e-05,2]
[355669266,1741450246550,-500.0,8.493e-05,2]
[355669268,1741450246559,-500.0,8.493e-05,2]
[355669270,1741450246568,-1497.11,8.493e-05,2]
[355669272,1741450246578,-1166.49,8.493e-05,2]
[355669274,1741450246587,-199.30328824,8.493e-05,2]
[355669276,1741450246597,-2049.23,8.493e-05,2]
[355669278,1741450246606,-2219.69,8.493e-05,2]
[355669280,1741450246615,-1357.3,8.493e-05,2]
[355669282,1741450246624,-500.0,8.493e-05,2]
[355669284,1741450246633,-500.0,8.493e-05,2]
[355669286,1741450246643,-500.0,8.493e-05,2]
[355669288,1741450246652,-6133.09,8.493e-05,2]
[355669290,1741450246661,-2171.47,8.493e-05,2]
[355669292,1741450246671,-2984.49,8.493e-05,2]
[355669294,1741450246680,-500.0,8.493e-05,2]
[355669296,1741450246690,-500.0,8.493e-05,2]
[355669298,1741450246700,-1037.89,8.493e-05,2]
[355669300,1741450246709,-867.84,8.493e-05,2]
[355669302,1741450246719,-500.0,8.493e-05,2]
[355669304,1741450246728,-1863.08,8.493e-05,2]
[355669306,1741450246737,-659.99,8.493e-05,2]
[355669307,1741450246747,-200.63187546,8.493e-05,2]
[355669309,1741450246756,-1075.32,8.493e-05,2]
[355669311,1741450246767,-3089.68,8.493e-05,2]
[355669313,1741450246777,-2187.41,8.493e-05,2]
[355669316,1741450246786,-572.79,8.493e-05,2]
[355669317,1741450246797,-5995.75,8.493e-05,2]
[355669320,1741450246806,-500.0,8.493e-05,2]
[355669322,1741450246816,-752.18,8.493e-05,2]
[355669324,1741450246830,-1319.49,8.493e-05,2]
[355669326,1741450246839,-1011.66,8.493e-05,2]
[355669328,1741450246849,-1350.39,8.493e-05,2]
[355669330,1741450246858,-1382.87,8.493e-05,2]
[355669332,1741450246868,-6919.1,8.493e-05,2]
[355669334,1741450246877,-567.75,8.493e-05,2]
[355669336,1741450246887,-604.0,8.493e-05,2]
[355669337,1741450246896,-1687.87,8.493e-05,2]
[355669339,1741450246905,-1157.52,8.493e-05,2]
[355669341,1741450246914,-789.79,8.493e-05,2]
[355669343,1741450246924,-887.2,8.493e-05,2]
[355669345,1741450246933,-2152.71,8.493e-05,2]
[355669347,1741450246943,-2756.22,8.493e-05,2]
[355669349,1741450246952,-872.98,8.493e-05,2]
[355669351,1741450246963,-500.0,8.493e-05,2]
[355669354,1741450246973,-3325.61,8.493e-05,2]
[355669356,1741450246983,-1306.31,8.493e-05,2]
[355669358,1741450246992,-12011.57,8.493e-05,2]
[355669359,1741450247002,-2363.22,8.493e-05,2]
[355669360,1741450247012,-1257.23,8.493e-05,2]
[355669361,1741450247023,-1805.35,8.493e-05,2]
[355669362,1741450247032,-500.0,8.493e-05,2]
[355669363,1741450247041,-500.0,8.493e-05,2]
[355669364,1741450247050,-1413.01,8.493e-05,2]
[355669365,1741450247059,-2989.51,8.493e-05,2]
[355669366,1741450247069,-935.65,8.493e-05,2]
[355669367,1741450247078,-747.04,8.493e-05,2]
[355669368,1741450247088,-721.1,8.493e-05,2]
[355669369,1741450247098,-1813.66,8.493e-05,2]
[355669370,1741450247107,-500.0,8.493e-05,2]
[355669371,1741450247116,-11444.74,8.493e-05,2]
[355669372,1741450247126,-500.0,8.493e-05,2]
[355669373,1741450247136,-2830.5,8.493e-05,2]
[355669374,1741450247145,-1286.66,8.493e-05,2]
[355669375,1741450247154,-2528.21,8.493e-05,2]
[355669376,1741450247164,-1510.82,8.493e-05,2]
[355669377,1741450247173,-1264.6,8.493e-05,2]
[355669378,1741450247182,-500.0,8.493e-05,2]
[355669379,1741450247192,-689.64,8.493e-05,2]
[355669380,1741450247203,-2233.02,8.493e-05,2]
[355669381,1741450247212,-500.0,8.493e-05,2]
[355669382,1741450247222,-500.0,8.493e-05,2]
[355669383,1741450247232,-2773.87,8.493e-05,2]
[355669384,1741450247242,-1618.72,8.493e-05,2]
[355669385,1741450247251,-500.0,8.493e-05,2]
[355669386,1741450247262,-1021.66,8.493e-05,2]
[355669387,1741450247272,-620.61,8.493e-05,2]
[355669388,1741450247286,-3122.98,8.493e-05,2]
[355669389,1741450247297,-913.18,8.493e-05,2]
[355669390,1741450247307,-610.59,8.493e-05,2]
[355669391,1741450247317,-5945.69,8.493e-05,2]
[355669392,1741450247327,-500.0,8.493e-05,2]
[355669393,1741450247336,-500.0,8.493e-05,2]
[355669394,1741450247346,-860.34,8.493e-05,2]
[355669395,1741450247357,-942.29,8.493e-05,2]
[355669396,1741450247367,-4818.15,8.493e-05,2]
[355669397,1741450247377,-500.0,8.493e-05,2]
[355669398,1741450247386,-500.0,8.493e-05,2]
[355669399,1741450247396,-500.0,8.493e-05,2]
[355669400,1741450247406,-5476.0,8.493e-05,2]
[355669401,1741450247417,-723.51,8.493e-05,2]
[355669402,1741450247427,-1402.52,8.493e-05,2]
[355669403,1741450247437,-3055.95,8.493e-05,2]
[355669404,1741450247447,-500.0,8.493e-05,2]
[355669405,1741450247458,-3991.9,8.493e-05,2]
[355669406,1741450247467,-1339.53,8.493e-05,2]
[355669407,1741450247477,-2276.46,8.493e-05,2]
[355669408,1741450247487,-27669.71,8.493e-05,2]
[355669409,1741450247497,-921.69,8.493e-05,2]
[355669410,1741450247507,-779.56,8.493e-05,2]
[355669411,1741450247518,-500.0,8.493e-05,2]
[355669412,1741450247528,-1165.23,8.493e-05,2]
[355669413,1741450247537,-6567.26,8.493e-05,2]
[355669414,1741450247548,-500.0,8.493e-05,2]
[355669415,1741450247557,-2129.6,8.493e-05,2]
[355669416,1741450247567,-500.0,8.493e-05,2]
[355669417,1741450247576,-500.0,8.493e-05,2]
[355669418,1741450247585,-1661.91,8.493e-05,2]
[355669419,1741450247595,-1521.6,8.5e-05,2]
[355669420,1741450247605,-704.31991907,8.507e-05,2]
[355669421,1741450247615,-704.31991907,8.58e-05,2]
[355669422,1741450247625,-281.247,8.631e-05,2]
[355669423,1741450247634,-292.963,8.631e-05,2]
[355669424,1741450247643,-3456.85,8.64e-05,2]
[355669425,1741450247667,-18642.08,8.64e-05,2]
[355669426,1741450247676,-500.0,8.64e-05,2]
[355669427,1741450247685,-900.26,8.64e-05,2]
[355669428,1741450247695,-506.89,8.64e-05,2]
[355669429,1741450247705,-1590.98,8.64e-05,2]
[355669430,1741450247714,-3349.73,8.64e-05,2]
[355669431,1741450247724,-1213.55,8.64e-05,2]
[355669432,1741450247734,-4631.77,8.64e-05,2]
[355669433,1741450247743,-3584.31,8.64e-05,2]
[355669434,1741450247753,-2586.02,8.64e-05,2]
[355669435,1741450247763,-1313.25,8.64e-05,2]
[355669436,1741450247772,-500.0,8.64e-05,2]
[355669437,1741450247782,-3465.88,8.64e-05,2]
[355669438,1741450247792,-6170.14,8.64e-05,2]
[355669439,1741450247803,-2896.99,8.64e-05,2]
[355669440,1741450247813,-704.31991907,8.652e-05,2]
[355669441,1741450247822,-831.589,8.664e-05,2]
[355669442,1741450247831,-1428.0,8.664e-05,2]
[355669443,1741450247841,-541.0,8.664e-05,2]
[355669444,1741450247850,-1270.0,8.664e-05,2]
[355669445,1741450247860,-907.0,8.664e-05,2]
[355669446,1741450247870,-4008.0,8.664e-05,2]
[355669447,1741450247879,-3931.0,8.664e-05,2]
[355669448,1741450247889,-150.0,8.664e-05,2]
[355669449,1741450247898,-937.82461428,8.666e-05,3]
[355669450,1741450247907,-30935.4534,8.667e-05,2]
[355669451,1741450247917,-5864.7483,8.667e-05,2]
[355669452,1741450247926,-2032.0,8.683e-05,2]
[355669453,1741450247936,-1278.0,8.683e-05,2]
[355669454,1741450247945,-571.0,8.683e-05,2]